Cogmind - Beta 16.1 *** ADVENTURER MODE // 2026.03.22 @ 15:28:59 Player: robocop Result: Self-destructed Performance ------------- Evolutions (5) 2500 Regions Visited (12) 2400 Robots Destroyed (177) 885 Value Destroyed (6362) 6362 Prototype IDs (35) 700 Alien Tech Used (0) 0 Bonus (1680) 1680 TOTAL SCORE: 14527 Bonus ------- High Alert Combat Kills 890 Entered Garrisons 200 Aligned with FarCom 300 Acquired ECA 300 Friendly Fire -10 Cogmind --------- Core Integrity 876/1000 Matter 12/300 Energy 5/150 System Corruption 6% Temperature Warm (151) Movement Hovering (43) Location -5/Factory Parts ------- > --- POWER (2) -------- Micro Fission Core > --- PROPULSION (5) --- Gravmag Array Antigrav System Linear Gravjet Improved Antigrav System > --- UTILITY (7) ------ Large Storage Unit Advanced Weight Redist. System Enhanced Optical Array Encrypted Comm Array Improved Target Analyzer Hacking Suite Makeshift Hacking Suite > --- WEAPON (3) ------- Improved KE Penetrator Mass Driver > --- INVENTORY (15) --- Light Fission Core Micro Fission Core Improved Heat Sink Enhanced Optical Array Advanced Recoil Stabilizer Matter Filter Improved Weapon Cycler Improved Propulsion Shielding Advanced Shield Generator Force Field Advanced System Shield Improved KE Penetrator Enhanced Gauss Cannon Peak State ------------ > --- POWER ------------ Improved Deuterium Engine Micro Fission Core > --- PROPULSION ------- Improved Gravmag System Cooled Aerolev Unit Linear Gravjet Combat Antigrav System > --- UTILITY ---------- Large Storage Unit Advanced Weight Redist. System Enhanced Optical Array Encrypted Comm Array Improved Target Analyzer Hacking Suite Makeshift Hacking Suite > --- WEAPON ----------- Improved KE Penetrator Advanced Assault Cannon Enhanced Gauss Cannon > --- INVENTORY -------- Light Fission Core Improved Heat Sink Enhanced Optical Array Advanced Recoil Stabilizer Matter Filter Improved Weapon Cycler Improved Propulsion Shielding Advanced Shield Generator Force Field Advanced System Shield Improved KE Penetrator Mass Driver [Rating: 84] Favorites ----------- Power Nuclear Core Engine F-cell Engine Power Core Nuclear Core Propulsion Combat Antigrav System Treads Light Treads Leg VSS Leg Hover Unit Combat Antigrav System Flight Unit VTOL Module Utility Hacking Suite Device Advanced Weight Redist. System Storage Large Storage Unit Processor Improved Target Analyzer Hackware Hacking Suite Protection Improved Light Armor Plating Weapon Light Assault Rifle Energy Gun Heavy Laser Ballistic Gun Light Assault Rifle Ballistic Cannon Advanced Assault Cannon Launcher Precision Grenade Launcher Impact Weapon Power Maul Slashing Weapon Longsword +1 Build | -11 -10 -10 -10 -9 -8 -7 -6 -6 -6 -6 -6 -5 ------- Run | Yrd Mat Min Exi Min Mat Fac Fac Gar Fac Low Low Fac Slots Evolved 10 | . . . . . 4 2 2 . . . . 2 Power 1 | . . . . . . . . . . . . 1 Propulsion 3 | . . . . . 1 . 1 . . . . 1 Utility 5 | . . . . . 2 2 1 . . . . . Weapon 1 | . . . . . 1 . . . . . . . Parts Attached 102 | . 6 . 1 . 23 11 6 20 19 9 . 7 Power 14 | . 1 . 1 . 1 1 1 3 4 1 . 1 Engine 8 | . 1 . 1 . . . 1 1 3 1 . . Core 6 | . . . . . 1 1 . 2 1 . . 1 Reactor . | . . . . . . . . . . . . . Propulsion 27 | . 2 . . . 7 3 2 5 3 1 . 4 Treads 2 | . 2 . . . . . . . . . . . Leg 6 | . . . . . 6 . . . . . . . Wheel . | . . . . . . . . . . . . . Hover 14 | . . . . . . 3 1 2 3 1 . 4 Flight 5 | . . . . . 1 . 1 3 . . . . Utility 39 | . 2 . . . 8 4 3 7 10 4 . 1 Device 15 | . . . . . 2 2 1 3 4 3 . . Storage 4 | . 1 . . . 2 . . . 1 . . . Processor 6 | . . . . . . . 1 . 4 . . 1 Hackware 6 | . . . . . 1 2 1 1 . 1 . . Protection 8 | . 1 . . . 3 . . 3 1 . . . Artifact . | . . . . . . . . . . . . . Weapon 22 | . 1 . . . 7 3 . 5 2 3 . 1 Energy Gun 2 | . . . . . 1 . . 1 . . . . Energy Cannon . | . . . . . . . . . . . . . Ballistic Gun 9 | . 1 . . . 5 1 . 1 . . . 1 Ballistic Cannon 8 | . . . . . . . . 3 2 3 . . Launcher 1 | . . . . . . 1 . . . . . . Special Weapon . | . . . . . . . . . . . . . Impact Weapon 1 | . . . . . . 1 . . . . . . Slashing Weapon 1 | . . . . . 1 . . . . . . . Piercing Weapon . | . . . . . . . . . . . . . Special Melee Weapon . | . . . . . . . . . . . . . Unidentified Prototypes 12 | . . . . . 4 1 1 . 5 . . 1 Corrupted Parts 1 | . . . . . . . . 1 . . . . System Corruption 10 | . . . . . . . . 10 . . . . Parts Lost 41 | . 2 . . . 7 . 1 15 9 3 1 3 Power 6 | . 1 . . . . . . 2 2 . . 1 Propulsion 12 | . . . . . 2 . 1 5 1 1 1 1 Utility 15 | . . . . . 4 . . 6 4 1 . . Weapon 8 | . 1 . . . 1 . . 2 2 1 . 1 Highest Loss Streak 5 | . 2 . . . 2 . 1 3 5 5 1 1 To Critical Strikes . | . . . . . . . . . . . . . Average Backups 9 | . 5 6 6 7 10 12 7 8 11 8 8 11 Power . | . . . . . . . . 1 1 . 1 1 Propulsion 1 | . 2 2 2 2 1 1 . 1 2 . . . Utility 5 | . 1 4 4 4 6 7 6 3 7 7 7 8 Weapon 1 | . . . . 1 1 2 1 1 1 . . 1 Tool/Special . | . . . . . . . . . . . . . Unused Backups 28 | . 4 . . . 2 5 . . 6 . . 11 Power 4 | . 2 . . . . . . . . . . 2 Propulsion 8 | . 2 . . . 1 1 . . 4 . . . Utility 14 | . . . . . 1 3 . . 2 . . 8 Weapon 2 | . . . . . . 1 . . . . . 1 Tool/Special . | . . . . . . . . . . . . . Average Slot Usage (%) 87 | . 95 85 100 100 92 95 91 83 85 71 97 87 Engine 3 | . 13 . 14 14 . . . 1 5 1 6 4 Core 3 | . . . . . 8 7 5 4 . . . 4 Treads 3 | . 22 28 28 28 2 . . . . . . . Leg 6 | . 5 . . . 22 14 . . . . . . Hover 10 | . . . . . . 8 19 12 19 21 23 19 Flight 1 | . . . . . . . . 6 . . . . Device 9 | . . . . . 7 7 6 13 13 10 20 14 Storage 7 | . 14 14 14 14 9 7 6 6 6 6 6 5 Processor 2 | . . . . . . . 5 . 4 6 6 7 Hackware 9 | . . . . . 3 13 19 15 12 10 13 11 Protection 7 | . 11 14 14 14 11 12 6 5 6 . . . Energy Gun 1 | . 12 . . . . . . 1 1 . . . Ballistic Gun 10 | . 14 28 28 28 26 12 . 1 . . . 4 Ballistic Cannon 4 | . . . . . . . . 6 6 13 20 9 Slashing Weapon 1 | . . . . . . 2 6 1 5 . . . Peak Build Rating 84 | . 8 7 9 9 37 48 60 64 80 71 71 84 Average Rating 45 | . 7 7 8 9 28 44 52 55 72 53 68 76 On Entrance 32 | 6 6 7 7 9 9 37 47 55 57 43 71 66 Avg Prop Armor Cover (%) 13 | . . . . . . . . 5 . 13 . . Naked Turns . | . . . . . . . . . . . . . Heaviest Build 60 | 11 21 17 22 22 42 45 34 43 52 55 55 60 Greatest Support 61 | 20 40 40 40 40 47 47 39 61 61 56 56 61 Greatest Overweight (x) 14 | . . . . . 8 14 1 2 1 14 1 1 Average Overweight (x) . | . . . . . . . . . . 3 . . Largest Inventory Capacity 15 | . 10 10 10 10 15 15 10 10 15 15 15 15 Average Capacity 12 | . 8 10 10 10 13 13 10 10 13 15 15 15 Most Carried 15 | . 7 7 7 7 15 15 10 10 15 12 8 15 Average Carried 9 | . 5 6 6 7 10 12 7 9 11 8 8 11 Final Capacity 15 | 8 10 10 10 10 15 10 10 10 15 15 15 15 Final Carried 15 | 6 6 7 7 7 15 10 9 10 9 8 8 13 Class Distribution -------------------- 22% | Hacker-Mutant 14% | Mutant 13% | Hacker-Skirmisher 11% | Hacker-Scout 8% | Hacker-Gunner 7% | Hacker-Tank 6% | Tank 6% | Skirmisher 3% | Scavenger-Scout 3% | Hacker-Gladiator Dominant Class ---------------- Mutant | -10/Materials Mutant | -10/Mines Mutant | -10/Exiles Mutant | -9/Mines Hacker-Skirmisher | -8/Materials Hacker-Tank | -7/Factory Hacker-Gladiator | -6/Factory Hacker-Mutant | -6/Garrison Hacker-Scout | -6/Factory Hacker-Gunner | -6/Lower Caves Hacker-Gunner | -6/Lower Caves Hacker-Skirmisher | -5/Factory Resources | -11 -10 -10 -10 -9 -8 -7 -6 -6 -6 -6 -6 -5 ----------- Run | Yrd Mat Min Exi Min Mat Fac Fac Gar Fac Low Low Fac Matter Collected 4553 | 200 98 73 . 30 944 311 35 1221 984 516 52 89 Remotely 189 | . . . . . . . . . 71 118 . . Salvage Created 6201 | . 615 215 . . 1448 501 193 1443 1340 133 54 259 Parts 318 | . 33 15 . . 86 30 5 55 63 4 5 22 Haulers Intercepted 7 | . 1 . . . 2 1 . . 3 . . . Recyclers Shooed 3 | . . 1 . . . . . . 2 . . . Parts Field Recycled . | . . . . . . . . . . . . . Retrieved Matter . | . . . . . . . . . . . . . Parts Self-Destructed 9 | . . . . . . . . . . 4 5 . Prevented 1 | . . . . . . . . . . 1 . . Parts Restored . | . . . . . . . . . . . . . Kills | -11 -10 -10 -10 -9 -8 -7 -6 -6 -6 -6 -6 -5 ------- Run | Yrd Mat Min Exi Min Mat Fac Fac Gar Fac Low Low Fac Combat Hostiles Destroyed 113 | . 11 9 . . 28 6 4 33 10 6 1 5 Melee 17 | . . . . . . 4 4 9 . . . . Guns 58 | . 11 9 . . 28 2 . 4 1 . . 3 Cannons 36 | . . . . . . . . 18 9 6 1 2 Classes Destroyed 15 | . 6 . . . 4 2 . 3 . . . . Worker 20 | . 2 . . . 4 2 . . 10 . . 2 Builder 11 | . . . . . 1 1 . . 7 . . 2 Tunneler 1 | . . . . . . 1 . . . . . . Hauler 7 | . 1 . . . 2 1 . . 3 . . . Recycler 7 | . 1 . . . 1 . . . 5 . . . Operator 9 | . . . . . 4 3 . . 2 . . . Watcher 9 | . 2 . . . 4 . . . 3 . . . Swarmer 35 | . 2 7 . . 6 . 1 10 5 4 . . Grunt 42 | . 9 2 . . 14 . 3 13 1 . . . Brawler 1 | . . . . . . . . 1 . . . . Sentry 19 | . . . . . 7 2 . 6 2 1 1 . Specialist 2 | . . . . . . . . 2 . . . . Hunter 6 | . . . . . 1 1 . . . 1 . 3 Programmer 7 | . . . . . . 3 . . 2 . . 2 Behemoth 1 | . . . . . . . . 1 . . . . Decomposer 2 | . . . . . . . . . . 2 . . Best Kill Streak 14 | . 3 4 . . 6 2 3 4 14 3 1 7 Combat Bots Only 5 | . 3 4 . . 5 2 3 4 3 3 1 2 Max Kills in Single Turn 5 | . 1 1 . . 2 1 1 1 5 1 1 2 Gunslinging 1 | . . . . . 1 . . . . . . . Exploded . | . . . . . . . . . . . . . Melee 1 | . . . . . . 1 1 1 . . . . Uniques/NPCs Destroyed . | . . . . . . . . . . . . . Combat | -11 -10 -10 -10 -9 -8 -7 -6 -6 -6 -6 -6 -5 -------- Run | Yrd Mat Min Exi Min Mat Fac Fac Gar Fac Low Low Fac Hostile Shots Fired 992 | . 91 37 . . 131 50 20 330 158 71 18 86 Missed 379 | . 21 11 . . 43 18 6 144 71 29 7 29 Hits 613 | . 70 26 . . 88 32 14 186 87 42 11 57 Melee 1 | . . . . . . . . . 1 . . . Projectile 612 | . 70 26 . . 88 32 14 186 86 42 11 57 Critical Strikes 14 | . 2 . . . 4 . . 3 3 2 . . Part Disruptions 3 | . . . . . . 1 . 1 1 . . . Damage Taken 7012 | . 624 231 . . 973 330 175 1900 1396 454 64 865 Core 1055 | . 111 12 . . 139 32 . 255 251 115 16 124 Absorbed by Shields . | . . . . . . . . . . . . . Redirected to Shielding 23 | . . . . . 16 7 . . . . . . Ignored by Resistances 1905 | . 192 68 . . 284 100 50 563 245 135 22 246 Core Remaining (%) 68 | 100 . . . 50 74 95 . . . . 25 . Volleys Fired 438 | . 65 27 . . 95 14 . 100 76 26 2 33 Largest 3 | . 2 2 . . 3 3 . 2 2 3 3 3 Hottest 134 | . 70 40 . . 75 75 . 117 117 134 134 120 Shots Fired 844 | . 118 53 1 3 276 26 . 173 88 41 6 59 Gun 579 | . 118 53 1 3 276 26 . 57 12 . . 33 Cannon 262 | . . . . . . . . 113 76 41 6 26 Launcher 3 | . . . . . . . . 3 . . . . Special . | . . . . . . . . . . . . . Kinetic 757 | . 65 53 1 3 276 26 . 151 76 41 6 59 Thermal 84 | . 53 . . . . . . 19 12 . . . Explosive 3 | . . . . . . . . 3 . . . . Electromagnetic . | . . . . . . . . . . . . . Robot Hit Streak 20 | . 16 12 2 1 17 14 . 14 20 7 4 7 Robot Miss Streak 6 | . 2 2 . 1 6 1 . 3 2 2 2 2 Penetration Max 2 | . . . . . . . . 2 1 . . 1 Secondary Targets 9 | . 2 2 . . 5 . . . . . . . Max Gunslinging Chain 2 | . 1 1 . . 2 . . . . . . . Shots Hit Robots 650 | . 91 39 1 1 202 40 13 118 77 24 4 40 Core Hits 272 | . 32 14 . . 92 15 6 52 35 8 2 16 Critical Kills 9 | . 1 . . . 1 . . 4 2 . . 1 Critical Parts Destroyed 9 | . . . . . 1 . . 6 1 . . 1 Critical Strikes 41 | . 2 . . . 2 . 1 15 13 1 2 5 Burn 1 | . 1 . . . . . . . . . . . Destroy 15 | . 1 . . . 2 . . 7 3 . . 2 Blast 19 | . . . . . . . . 4 9 1 2 3 Smash 3 | . . . . . . . . 3 . . . . Sever 3 | . . . . . . . 1 1 1 . . . Melee Attacks 118 | . . . . . . 20 13 41 44 . . . Impact 16 | . . . . . . . . 16 . . . . Slashing 102 | . . . . . . 20 13 25 44 . . . Piercing . | . . . . . . . . . . . . . Sneak Attacks 18 | . . . . . . 7 1 1 9 . . . Combat Hostiles 3 | . . . . . . 1 1 1 . . . . Follow-up Attacks 2 | . . . . . . . . 2 . . . . Damage Inflicted 18279 | . 946 315 10 20 3098 1658 650 4490 5306 544 96 1146 Guns 6578 | . 940 315 10 20 3065 414 . 1011 159 . . 644 Cannons 5497 | . . . . . . . . 1950 2405 544 96 502 Explosions 1677 | . . . . . . . . 113 1564 . . . Melee 4461 | . . . . . . 1244 650 1410 1157 . . . Ramming 66 | . 6 . . . 33 . . 6 21 . . . Kinetic 11251 | . 390 315 10 20 3065 414 . 2846 2405 544 96 1146 Thermal 1120 | . 550 . . . . . . 115 455 . . . Explosive 1381 | . . . . . . . . 113 1268 . . . Electromagnetic . | . . . . . . . . . . . . . Impact 564 | . . . . . . . . 564 . . . . Slashing 3897 | . . . . . . 1244 650 846 1157 . . . Piercing . | . . . . . . . . . . . . . Highest Corruption 12 | . 2 2 2 2 . 1 . 10 12 9 9 6 Average Corruption 7 | . 1 2 2 2 . 1 . 10 9 9 9 5 Corruption Purged 14 | . . . . . . . . . 14 . . . Corruption Blocked . | . . . . . . . . . . . . . Effects 272 | . 6 4 4 5 . 2 . 92 76 67 11 5 Message Errors 62 | . 1 . 1 . . 1 . 22 18 14 4 1 Matter Fused 59 | . 1 . 1 1 . . . 18 20 16 1 1 Heat Flow Errors 34 | . 1 . . . . . . 10 10 10 2 1 Energy Discharges 28 | . . 1 1 . . . . 9 8 5 2 2 Parts Rejected 4 | . . . . . . . . 2 1 1 . . Parts Fused 7 | . 1 . . . . . . 4 2 . . . Data Loss (minor) 33 | . . 1 . . . 1 . 13 8 8 2 . Data Loss (major) 18 | . 1 1 . 1 . . . 7 4 4 . . Misfires 16 | . . . 1 3 . . . 2 3 7 . . Alerts 4 | . 1 . . . . . . 1 1 1 . . Misdirections 2 | . . . . . . . . 1 1 . . . Weapon Failures 5 | . . 1 . . . . . 3 . 1 . . Overload Shots . | . . . . . . . . . . . . . Overflow Damage 1815 | . . . . . . 311 46 418 967 41 . 32 Projectiles 442 | . . . . . . . . 99 270 41 . 32 Explosions 173 | . . . . . . . . . 173 . . . Melee 1200 | . . . . . . 311 46 319 524 . . . Knockbacks 28 | . . . . . . . . 11 15 2 . . Impact 2 | . . . . . . . . . 2 . . . Kinetic 25 | . . . . . . . . 10 13 2 . . Secondary 1 | . . . . . . . . 1 . . . . Self-Inflicted Damage 89 | . . . . . . . . 3 86 . . . Shots 1 | . . . . . . . . . 1 . . . Rammed 7 | . 3 . . . . . . 1 3 . . . Targets Rammed 16 | . 4 . . . 8 . . 1 3 . . . Kicked 8 | . . . . . 8 . . . . . . . Crushed 1 | . 1 . . . . . . . . . . . Highest Temperature 388 | . 388 25 7 7 267 . . 244 271 236 249 238 Average Temperature 71 | . 108 11 7 6 61 . . 59 45 88 126 61 Received Heat Transfer 1980 | . 396 117 . . 567 48 63 615 114 12 30 18 Effects 5 | . 3 . . . . . . 1 1 . . . Energy Bleed 2 | . . . . . . . . 1 1 . . . Interference 2 | . 2 . . . . . . . . . . . Short Circuit 1 | . 1 . . . . . . . . . . . Siege Activations . | . . . . . . . . . . . . . Martial Activations . | . . . . . . . . . . . . . Shielding Activations . | . . . . . . . . . . . . . Robots Disrupted . | . . . . . . . . . . . . . Combat Hostiles . | . . . . . . . . . . . . . Robots Corrupted 2 | . . . . . . . . 2 . . . . Combat Hostiles 2 | . . . . . . . . 2 . . . . Parts Fried 2 | . . . . . . . . 2 . . . . Impact Corruptions 7 | . . . . . . . . 7 . . . . Robots Melted . | . . . . . . . . . . . . . Combat Hostiles . | . . . . . . . . . . . . . Parts Melted 3 | . 2 . . . . . . . 1 . . . Heat Transferred 2420 | . 1702 . . . . . . 222 496 . . . Parts Sabotaged . | . . . . . . . . . . . . . Parts Stolen . | . . . . . . . . . . . . . Parts Stripped . | . . . . . . . . . . . . . Power Chain Reactions . | . . . . . . . . . . . . . Alert | -11 -10 -10 -10 -9 -8 -7 -6 -6 -6 -6 -6 -5 ------- Run | Yrd Mat Min Exi Min Mat Fac Fac Gar Fac Low Low Fac Maximum Alert Level 5 | . . . . . . . . 5 4 . . . Low Security (%) 60 | . 100 100 . 100 100 100 100 2 . . . 100 Level 1 3 | . . . . . . . . 17 . . . . Level 2 4 | . . . . . . . . 20 . . . . Level 3 13 | . . . . . . . . 20 47 . . . Level 4 14 | . . . . . . . . 25 52 . . . Level 5 3 | . . . . . . . . 13 . . . . High Security . | . . . . . . . . . . . . . Max Security . | . . . . . . . . . . . . . Peak Influence 1989 | . 90 169 . . 166 50 135 1989 1372 . . 137 Initial 904 | . . 14 . . . . . 82 904 . . . Average 422 | . 38 104 . . 23 3 29 954 1087 . . 22 Influence Increases 5643 | . 351 225 . . 855 223 190 2077 1248 155 20 299 Destroy 0b10 Robot/C 2260 | . 220 180 . . 560 120 80 660 200 120 20 100 Destroy 0b10 Robot/NC 325 | . 30 . . . 80 40 . 5 150 . . 20 Destroy Leader 502 | . 56 30 . . 162 62 20 40 72 20 . 40 Successful Hack 91 | . . . . . 21 . . 8 47 . . 15 Disable Machine 369 | . . . . . . . . 27 342 . . . Anti-Garrison Action 1100 | . . . . . . . . 950 150 . . . Destroy Structure 321 | . . . . . 2 1 . 162 122 . . 34 Partial Spotted 45 | . . . . . . . 30 . . . . 15 Lose Combat Pursuer 630 | . 45 15 . . 30 . 60 225 165 15 . 75 Influence Decreases 5514 | . 306 181 89 . 855 223 55 223 2305 1087 20 170 Entered New Map 1676 | . . 31 89 . . . . 53 1085 418 . . Time Decay 3468 | . 306 150 . . 805 223 55 . 1130 639 20 140 Lost Part 350 | . . . . . 50 . . 150 90 30 . 30 Lost Ally 20 | . . . . . . . . 20 . . . . Squads Dispatched 47 | . 3 . . . 11 6 3 . 20 . . 4 Investigation 12 | . 3 . . . 2 1 1 . 4 . . 1 Extermination 9 | . . . . . . 3 . . 5 . . 1 Reinforcement 14 | . . . . . 5 2 1 . 5 . . 1 Assault 6 | . . . . . . . . . 6 . . . Garrison 6 | . . . . . 4 . 1 . . . . 1 Intercept . | . . . . . . . . . . . . . Searches Triggered . | . . . . . . . . . . . . . Construction Impeded 1 | . . . . . . . . . 1 . . . Haulers Reinforced . | . . . . . . . . . . . . . Active Scanning Responses . | . . . . . . . . . . . . . Cargo Convoy Interrupts . | . . . . . . . . . . . . . Stealth | -11 -10 -10 -10 -9 -8 -7 -6 -6 -6 -6 -6 -5 --------- Run | Yrd Mat Min Exi Min Mat Fac Fac Gar Fac Low Low Fac Distress Signals 11 | . 2 1 . . 6 . . . 2 . . . Communications Jammed . | . . . . . . . . . . . . . Distress Signals . | . . . . . . . . . . . . . Times Spotted 199 | . 21 10 . . 51 8 9 48 30 6 1 15 Peak Tracking Total 7 | . 4 3 . . 7 2 3 5 6 4 1 5 Tactical Retreats 27 | . 2 1 . . 2 . 3 10 5 1 . 3 Traps | -11 -10 -10 -10 -9 -8 -7 -6 -6 -6 -6 -6 -5 ------- Run | Yrd Mat Min Exi Min Mat Fac Fac Gar Fac Low Low Fac Traps Triggered 14 | . 4 . . . . 1 1 6 2 . . . Indirectly . | . . . . . . . . . . . . . Trap Hack Attempts . | . . . . . . . . . . . . . Triggered . | . . . . . . . . . . . . . Disarmed . | . . . . . . . . . . . . . Reprogrammed . | . . . . . . . . . . . . . Reused . | . . . . . . . . . . . . . Traps Extracted . | . . . . . . . . . . . . . Installed . | . . . . . . . . . . . . . Triggered . | . . . . . . . . . . . . . Machines | -11 -10 -10 -10 -9 -8 -7 -6 -6 -6 -6 -6 -5 ---------- Run | Yrd Mat Min Exi Min Mat Fac Fac Gar Fac Low Low Fac Machines Disabled 47 | . . . . . . . . 8 39 . . . Max in Single Turn 10 | . . . . . . . . 1 10 . . . Garrison Access 1 | . . . . . . . . . 1 . . . Garrison Relay 3 | . . . . . . . . 3 . . . . Machines Repaired . | . . . . . . . . . . . . . Machines Dismantled . | . . . . . . . . . . . . . Machines Sabotaged . | . . . . . . . . . . . . . Overloaded Fab Kills . | . . . . . . . . . . . . . Hacking | -11 -10 -10 -10 -9 -8 -7 -6 -6 -6 -6 -6 -5 --------- Run | Yrd Mat Min Exi Min Mat Fac Fac Gar Fac Low Low Fac Machines Accessed 27 | . 3 . 1 . 6 2 2 3 8 1 . 1 Terminals 19 | . 3 . . . 6 1 1 3 4 . . 1 Fabricators 1 | . . . . . . . . . 1 . . . Repair Stations . | . . . . . . . . . . . . . Recycling Units 2 | . . . . . . . . . 2 . . . Scanalyzers 2 | . . . . . . 1 . . 1 . . . Garrison Access 1 | . . . . . . . 1 . . . . . Total Hacks 69 | . 7 . 1 . 20 6 3 3 25 1 . 3 Successful 47 | . 1 . 1 . 14 2 1 3 22 1 . 2 Failed 22 | . 6 . . . 6 4 2 . 3 . . 1 Catastrophic 1 | . . . . . 1 . . . . . . . Database Lockouts . | . . . . . . . . . . . . . Manual 40 | . 7 . 1 . 18 4 2 . 7 . . 1 Terminals 52 | . 7 . . . 20 4 2 3 13 . . 3 Fabricators 2 | . . . . . . . . . 2 . . . Repair Stations . | . . . . . . . . . . . . . Recycling Units 5 | . . . . . . . . . 5 . . . Scanalyzers 7 | . . . . . . 2 . . 5 . . . Garrison Access 1 | . . . . . . . 1 . . . . . Terminal Hacks 20 | . . . 1 . 8 . . 3 6 1 . 1 Record 3 | . . . . . 1 . . . 2 . . . Part Schematic 4 | . . . . . 4 . . . . . . . Open Door 2 | . . . . . . . . 1 . 1 . . Branch Access Points 2 | . . . . . 1 . . . 1 . . . Emergency Access Points 3 | . . . . . 1 . . 1 1 . . . Alert Level 1 | . . . . . . . . . . . . 1 Security Status 1 | . . . . . . . . . 1 . . . Hauler Manifests 1 | . . . . . 1 . . . . . . . Zone Layout 1 | . . . . . . . . . 1 . . . Security Stations 1 | . . . . . . . . 1 . . . . Proto ID Catalog 1 | . . . 1 . . . . . . . . . Fabricator Hacks 2 | . . . . . . . . . 2 . . . Network Status 1 | . . . . . . . . . 1 . . . Build 1 | . . . . . . . . . 1 . . . Repair Station Hacks . | . . . . . . . . . . . . . Recycling Unit Hacks 5 | . . . . . . . . . 5 . . . Recycle Component 1 | . . . . . . . . . 1 . . . Report Inventory 1 | . . . . . . . . . 1 . . . Retrieve Matter 2 | . . . . . . . . . 2 . . . Retrieve Components 1 | . . . . . . . . . 1 . . . Scanalyzer 6 | . . . . . . 1 . . 5 . . . Retrieve Study 6 | . . . . . . 1 . . 5 . . . Garrison Access Hacks 1 | . . . . . . . 1 . . . . . Unlock Access 1 | . . . . . . . 1 . . . . . Unauthorized Hacks 13 | . 1 . . . 6 1 . . 4 . . 1 Terminals 13 | . 1 . . . 6 1 . . 4 . . 1 Botnet 13 | . 1 . . . 6 1 . . 4 . . 1 Fabricators . | . . . . . . . . . . . . . Repair Stations . | . . . . . . . . . . . . . Recycling Units . | . . . . . . . . . . . . . Scanalyzers . | . . . . . . . . . . . . . Garrison Access . | . . . . . . . . . . . . . Data Cores Recovered 1 | . . . . . . 1 . . . . . . Used . | . . . . . . . . . . . . . Hacking Detections 21 | . 3 . . . 5 2 1 1 8 . . 1 Full Trace Events 9 | . 2 . . . 2 1 . . 3 . . 1 Feedback Events . | . . . . . . . . . . . . . Feedback Blocked . | . . . . . . . . . . . . . Robot Schematics Acquired . | . . . . . . . . . . . . . Robots Built . | . . . . . . . . . . . . . Authchips . | . . . . . . . . . . . . . Time . | . . . . . . . . . . . . . Total Robot Build Rating . | . . . . . . . . . . . . . Part Schematics Acquired 4 | . . . . . 4 . . . . . . . Parts Built 2 | . . . . . . . . . 2 . . . Authchips . | . . . . . . . . . . . . . Time 117 | . . . . . . . . . 117 . . . Total Part Build Rating 14 | . . . . . . . . . 14 . . . Part Studies Acquired 3 | . . . . . . 1 . . 2 . . . Parts Repaired . | . . . . . . . . . . . . . Time . | . . . . . . . . . . . . . Parts Recycled 1 | . . . . . . . . . 1 . . . Recycled Matter . | . . . . . . . . . . . . . Retrieved Matter . | . . . . . . . . . . . . . Retrieved Components 8 | . . . . . . . . . 8 . . . Parts Scanalyzed . | . . . . . . . . . . . . . Part Schematics Acquired . | . . . . . . . . . . . . . Parts Damaged . | . . . . . . . . . . . . . Bothacking | -11 -10 -10 -10 -9 -8 -7 -6 -6 -6 -6 -6 -5 ------------ Run | Yrd Mat Min Exi Min Mat Fac Fac Gar Fac Low Low Fac Used RIF Installer . | . . . . . . . . . . . . . Robots Hacked . | . . . . . . . . . . . . . Non-combat . | . . . . . . . . . . . . . Combat . | . . . . . . . . . . . . . Robot Hacks Applied . | . . . . . . . . . . . . . Relay Couplers Released 21 | . . . . . . . . 15 2 . . 4 Machine Destruction 17 | . . . . . . . . 15 2 . . . Programmers 4 | . . . . . . . . . . . . 4 Fabnet Peak Effective % . | . . . . . . . . . . . . . Robots Rewired . | . . . . . . . . . . . . . Allies Hacked . | . . . . . . . . . . . . . Hacks Repelled . | . . . . . . . . . . . . . Allies | -11 -10 -10 -10 -9 -8 -7 -6 -6 -6 -6 -6 -5 -------- Run | Yrd Mat Min Exi Min Mat Fac Fac Gar Fac Low Low Fac Total Allies 2 | . . 1 . . . . . 1 . . . . Largest Group 1 | . . 1 . . . . . 1 . . . . Highest-Rated Group 51 | . . 31 . . . . . 51 . . . . Highest-Rated Ally 51 | . . 31 . . . . . 51 . . . . Initial Warlord ECA Mod 7 | . . . . . . . . . 7 7 7 6 Total Orders . | . . . . . . . . . . . . . Ally Attacks 4 | . . . . . . . . 4 . . . . Total Damage 107 | . . . . . . . . 107 . . . . Kills . | . . . . . . . . . . . . . Allies Corrupted . | . . . . . . . . . . . . . Allies Melted . | . . . . . . . . . . . . . Intel | -11 -10 -10 -10 -9 -8 -7 -6 -6 -6 -6 -6 -5 ------- Run | Yrd Mat Min Exi Min Mat Fac Fac Gar Fac Low Low Fac Active Infowar (turns) 3874 | . . . . . . . . 1147 1334 483 299 611 Optics 259 | . . . . . . . . . . . . 259 Sensors 3615 | . . . . . . . . 1147 1334 483 299 352 Robot Analysis Total . | . . . . . . . . . . . . . Derelict Logs Recovered 4 | . . . . . . . . . . 3 1 . Drone Launches . | . . . . . . . . . . . . . Drone Recoveries . | . . . . . . . . . . . . . Exploration | -11 -10 -10 -10 -9 -8 -7 -6 -6 -6 -6 -6 -5 ------------- Run | Yrd Mat Min Exi Min Mat Fac Fac Gar Fac Low Low Fac Turns Passed 15878 | . 727 307 583 405 3550 1892 207 2965 2268 2059 299 616 Spaces Moved 9719 | 1 333 111 364 254 1132 1582 176 1802 2319 901 204 540 Core 286 | . . . . . 2 2 . 2 . 280 . . Treads 1245 | . 273 111 364 254 243 . . . . . . . Legs 1584 | 1 60 . . . 887 636 . . . . . . Wheels . | . . . . . . . . . . . . . Hover 6209 | . . . . . . 944 176 1405 2319 621 204 540 Flight 395 | . . . . . . . . 395 . . . . Fastest Speed 26 | 120 120 160 160 160 90 52 52 26 50 50 50 43 Average Speed 98 | 120 152 160 160 160 134 81 53 67 57 202 83 90 Slowest Speed 750 | 120 160 160 160 160 450 750 116 165 101 750 111 118 Overloaded Moves . | . . . . . . . . . . . . . Propulsion Burnouts . | . . . . . . . . . . . . . Robots Hopped . | . . . . . . . . . . . . . Potential Cave-ins 22 | . . . . . . . . . 22 . . . Cave-ins Triggered 2 | . . . . . . . . . 2 . . . Exploration Rate (%) 44 | 2 55 25 87 49 67 24 4 94 44 91 22 14 Regions Visited 12 Branch Regions 5 Pre-discovered Areas 1 | . . . . . . . . . . 1 . . Known Exits Taken 4 | . . . . . . . 1 . 1 1 1 . Unknown Exits Taken 7 | 1 1 1 1 1 1 1 . . . . . . Scrap Searched 4 | . . . . 1 . . . . . 3 . . Spaces Dug 29 | . . . . . . 1 . 1 24 . . 3 Terrain Destroyed 223 | . . . . . . 1 . 51 141 15 2 13 Melee 23 | . . . . . . 1 . . 22 . . . Projectile 79 | . . . . . . . . 26 23 15 2 13 AOE 121 | . . . . . . . . 25 96 . . . Terrain Rammed . | . . . . . . . . . . . . . Walls Destroyed . | . . . . . . . . . . . . . Machines Disabled . | . . . . . . . . . . . . . Actions | -11 -10 -10 -10 -9 -8 -7 -6 -6 -6 -6 -6 -5 --------- Run | Yrd Mat Min Exi Min Mat Fac Fac Gar Fac Low Low Fac Total 15132 | . 444 197 365 253 2991 2156 275 3310 3097 1107 328 609 Wait 4500 | . 29 59 . . 1685 496 77 1277 579 162 123 13 Move 9705 | . 332 110 363 253 1131 1581 175 1800 2317 900 203 540 Hop . | . . . . . . . . . . . . . Pick Up 115 | . 5 1 1 . 29 14 2 13 30 9 . 11 Fast Attach 13 | . . . . . 1 2 . 9 1 . . . Attach 83 | . 3 . 1 . 18 7 5 15 17 10 . 7 Detach 9 | . . . . . 4 . 2 2 . . . 1 Swap 22 | . 3 . . . 8 4 1 . 5 . . 1 Drop 63 | . 3 . . . 12 18 . 7 20 . . 3 Fire 438 | . 65 27 . . 95 14 . 100 76 26 2 33 Melee 112 | . . . . . . 20 13 35 44 . . . Ram 4 | . . . . . . . . 1 3 . . . Kick 8 | . . . . . 8 . . . . . . . Crush 4 | . 4 . . . . . . . . . . . Escape Stasis 56 | . . . . . . . . 51 5 . . . Rewire . | . . . . . . . . . . . . . Trap . | . . . . . . . . . . . . . Miscellaneous . | . . . . . . . . . . . . . Route ------- -11/Scrapyard -10/Materials (discovered 3 exits: [*Mat x2] / [*Min]) -10/Mines (discovered 3 exits: [*Mat] / *Exi / [*Sub]) -10/Exiles -9/Mines (discovered 2 exits: *Mat x2) -8/Materials -7/Factory (discovered 2 exits: *Fac x2) -6/Factory -6/Garrison (discovered 3 exits: *Fac x3) -6/Factory (discovered 6 exits: *Fac x2 / *Low x2 / *Ext x2) -6/Lower Caves -6/Lower Caves -5/Factory (discovered 1 exit: *Upp) History --------- Turn | Location | Event 1 | -11/Scrapyard | Discovered new exit (range 0) 1 | -11/Scrapyard | Entered Materials 301 | -10/Materials | Build established: Mutant 338 | -10/Materials | Discovered new exit (range 11) 435 | -10/Materials | Discovered new exit (range 14) 577 | -10/Materials | Discovered new exit (range 14) 728 | -10/Materials | Entered Mines 789 | -10/Mines | Discovered new exit (range 12) 881 | -10/Mines | Escorted by a lone wolf Derelict 921 | -10/Mines | Discovered new exit (range 6) 1028 | -10/Mines | Deemed a non-threat by the Exiles lab entrance 1028 | -10/Mines | Discovered new exit (range 5) 1035 | -10/Mines | Entered Exiles 1035 | -10/Exiles | Accompanied by 1 ally 1078 | -10/Exiles | Met 8R-AWN 1104 | -10/Exiles | Met EX-HEX 1153 | -10/Exiles | Met EX-BIN 1176 | -10/Exiles | Aligned with FarCom system 1177 | -10/Exiles | Given EX-Vault access code 1214 | -10/Exiles | Opened EX-Vault 1225 | -10/Exiles | Found Longsword +1 1258 | -10/Exiles | Warned to stay clear of 0b10 Research branches 1301 | -10/Exiles | Met EX-DEC 1366 | -10/Exiles | Visited The Gauntlet 1605 | -10/Exiles | Discovered new exit (range 10) 1618 | -10/Exiles | Left Exiles lab with Longsword +1 1618 | -10/Exiles | Entered Mines 1721 | -9/Mines | Discovered new exit (range 5) 1801 | -9/Mines | Discovered new exit (range 6) 1824 | -9/Mines | Assembled infested the area 2023 | -9/Mines | Entered Materials 2023 | -8/Materials | Evolved 4 slots: Propulsion x1, Utility x2, Weapon x1 2389 | -8/Materials | Build established: Skirmisher 2545 | -8/Materials | Garrison activated, responded to threat 3286 | -8/Materials | Build established: Hacker-Skirmisher 4117 | -8/Materials | Garrison activated, responded to threat 4812 | -8/Materials | Build established: Tank 4843 | -8/Materials | Discovered new exit (range 10) 5573 | -8/Materials | Entered Factory 5573 | -7/Factory | Evolved 2 slots: Utility x2 5726 | -7/Factory | Discovered new exit (range 11) 5862 | -7/Factory | Build established: Hacker-Tank 7176 | -7/Factory | Build established: Hacker-Mutant 7345 | -7/Factory | Discovered new exit (range 5) 7465 | -7/Factory | Entered another Factory area 7465 | -6/Factory | Evolved 2 slots: Propulsion x1, Utility x1 7601 | -6/Factory | Garrison activated, responded to threat 7665 | -6/Factory | Identified exit to Garrison 7672 | -6/Factory | Entered Garrison 7742 | -6/Garrison | Garrison Relay disabled 7748 | -6/Garrison | Triggered checkpoint 7784 | -6/Garrison | Build established: Hacker-Gladiator 7946 | -6/Garrison | Spotted B-75 Beast 7948 | -6/Garrison | Triggered checkpoint 7993 | -6/Garrison | Destroyed B-75 Beast 8022 | -6/Garrison | System corruption reached 10% 8064 | -6/Garrison | Lost 3 parts (1p2u) 8283 | -6/Garrison | Rescued a captive Derelict 8367 | -6/Garrison | Triggered checkpoint 8460 | -6/Garrison | Discovered new exit (range 10) 8499 | -6/Garrison | Garrison Relay disabled 8647 | -6/Garrison | Build established: Hacker-Mutant 8658 | -6/Garrison | Spotted B-75 Beast 9124 | -6/Garrison | Triggered checkpoint 9131 | -6/Garrison | Triggered checkpoint 9203 | -6/Garrison | Lost 3 parts (1p2u) 9480 | -6/Garrison | Discovered new exit (range 5) 9796 | -6/Garrison | Build established: Hacker-Scout 9888 | -6/Garrison | Learned Factory security intel 10058 | -6/Garrison | Garrison Relay disabled 10264 | -6/Garrison | Build established: Scavenger-Scout 10403 | -6/Garrison | Discovered new exit (range 7) 10430 | -6/Garrison | Triggered checkpoint 10582 | -6/Garrison | Attempted to access garrison exit controls, blocked by remote lockdown 10602 | -6/Garrison | Triggered checkpoint 10637 | -6/Garrison | Entered Factory 10885 | -6/Factory | Discovered new exit (range 13) 10910 | -6/Factory | Build established: Hacker-Scout 11510 | -6/Factory | Identified exit to Factory 11687 | -6/Factory | First assault squad dispatched 11705 | -6/Factory | Discovered new exit (range 3) 11708 | -6/Factory | Identified exit to Extension 11802 | -6/Factory | Identified exit to Lower Caves 12109 | -6/Factory | Fabricated Impulse Thruster? 12285 | -6/Factory | Build established: Hacker-Mutant 12551 | -6/Factory | Discovered exit to Factory (range 15) 12595 | -6/Factory | Core integrity fell below 50% 12816 | -6/Factory | Crushed by falling debris 12831 | -6/Factory | Crushed by falling debris 12862 | -6/Factory | Lost 5 parts (1p1n2u1w) 12905 | -6/Factory | Entered Lower Caves 12912 | -6/Lower Caves | Met a Warlord Commander 12913 | -6/Lower Caves | Learned location of Warlord (-5) 12914 | -6/Lower Caves | Warlord Commander delivered Encrypted Comm Array 12914 | -6/Lower Caves | Found Encrypted Comm Array 12969 | -6/Lower Caves | Lost 5 parts (1p1n1u2w) 13118 | -6/Lower Caves | Lost 3 allies 14155 | -6/Lower Caves | Build established: Hacker-Gunner 14420 | -6/Lower Caves | Identified exit to Lower Caves 14659 | -6/Lower Caves | Attracted the attention of an 0b10 checkpoint 14931 | -6/Lower Caves | Learned Factory trap positions 14964 | -6/Lower Caves | Entered another Lower Caves area 14965 | -6/Lower Caves | Discovered exit to Factory (range 13) 14976 | -6/Lower Caves | Encountered a Warlord checkpoint 15135 | -6/Lower Caves | Attracted the attention of an 0b10 checkpoint 15179 | -6/Lower Caves | Learned Factory stockpile data 15263 | -6/Lower Caves | Entered Factory 15263 | -5/Factory | Evolved 2 slots: Power x1, Propulsion x1 15264 | -5/Factory | Identified exit to Upper Caves 15265 | -5/Factory | Loaded intel: 72 trap records 15556 | -5/Factory | Build established: Hacker-Skirmisher 15716 | -5/Factory | Garrison activated, responded to threat 15879 | -5/Factory | Self-destructed Last Messages --------------- 15818_ U-05 Engineer builds a Wall. 15824_ Penetrated by Slug. 15824_ Acquired Antigrav System. 15826_ Acquired Mic. Fission Core. 15828_ Discarded Cmb. Antigrav System. 15829_ Dropped Imp. Gravmag System+. 15829_ U-05 Engineer builds a Door. 15832_ Acquired 42 matter. 15837_ Acquired Unknown Hover Unit. 15838_ Identified Gravmag Array. 15842_ Imp. Deuterium Engine destroyed. 15844_ K-01 Serf collects debris. 15849_ System corrupted: Energy discharge (-41). 15867_ System corrupted: Heat flow error (+262). 15873_ Slug penetrates Y-64 Sentinel. 15873_ Y-64 Sentinel Wave Gun blasted off. 15874_ U-05 Engineer builds a Wall. 15875_ Penetrated by Slug. 15876_ Slug penetrates Y-64 Sentinel. 15877_ Penetrated by Slug. Map ----- +----------------------------------------------------+ | ?????????????????????????????????# |!%+== | | ??????????????????????????????!??# =!!#!! | | ?????????????????????????????????# !#% | | ?????????????????????????????????# # | | ?????????????????????????????????# # | | ?????????????????????????????????# # | | ?????????????????????????????????# + | | ?????????????????????????????????# # | | ?????????????????????????????????# # | | ?????????????????????????????????######+####### | | ????????????????????????????????????# ! == | | ????????????????????????????????????# !== ^ | | ????????????????????????????????????+ ^!= | | ????????????????????????????????????# | | ????????????????????????????????????# """"""""" | | ????????????????????????????????????#^ | | ????????????????????????????????????# """"""""" | | ????????????????????????????????????# ^ | | ???????????????????[????############# """"""""" | | ????????????????????????# ] """"" # | | ????????????????????????# ""T"" + """"""""" | | ????????????????????????# # | | ????????????????????????# """""""""g# | | ????????????????????????# %g # # | | ????????????????????????# """"""""" # # | | ????????????????????????#@ Yu # # | | ????????????????????????######+###### ########+ | | ?????????????????????????????# #????# #???????? | | ????????o????????????????????# #????# #???????? | | ????????????????????????????? ????# #???????? | | ????????????????????????????? ???? #???????? | | ????????????????????????????? " ???? #???????? | | ????????????????????????????? ???? #???????? | | ???????????????????????????? ???######???????? | | ????????????????????????????# #????????????????? | | ????????????????????????????# #????????????????? | | ????????????????????????????# #????????????????? | | ????????????????????????????# #????????????????? | | ????????????????????????????# #????????????????? | | ???????????????????????????? ????????????????? | | ???????????????????????????? ????????????????? | | !??????????????????????????? Y ????????????????? | | ???????????????????????????? ????????????????? | | ???????????????????????????? ????????????????? | | ????????????????????????????## ##????????????????? | | ?????????????????????????????? ??????????????????? | | ?????????????????????????????????????????????????? | | ?????????????????????????????????????????????????? | | ????????????????????=????????????????????????????? | | ?????????????????????????????????????????????????? | +----------------------------------------------------+ Best States ------------- Heat Dissipation 51 Energy Generation 26 Energy Capacity 500 Matter Stores 300 Matter Capacity 300 Sight Range 22 Robot Scan Range 15 Terrain Scan Density 10 Additional Mass Support 9 Armor Coverage 150 Resistance: KI 20 Resistance: TH 20 Resistance: EX 20 Resistance: EM 20 Resistance: I 20 Resistance: S 20 Resistance: P 20 Power Shielding 66 Evasion (%) 64 Melee Accuracy 5 Target Analysis 6 Recoil Reduction 2 Offensive Hacking 40 Defensive Hacking 10 Item Schematics ----------------- Hacking Suite | -8/Materials | Hacked Utility Shielding | -8/Materials | Hacked Signal Interpreter | -8/Materials | Hacked Adv. Weight Redist. System | -8/Materials | Hacked Robot Schematics ------------------ None Fabricated ------------ Impulse Thruster | x2 | -6/Factory | Preloaded Repaired ---------- Nothing Studied --------- Gravmag System | -7/Factory | Hacked Hvy. Assault Cannon | -6/Factory | Hacked Imp. Gravmag System | -6/Factory | Hacked Alien Tech Used ----------------- None Achievements -------------- A Problem For Future Me Ghost 'Em I Like You, Cogmind It Was An Accident, I Swear Let Me Out Of Here Overwhelming Part-time Excavator Sprinter root@ Challenges ------------ None Game ------ Seed LayeredCryofiberManipulator Manual? 0 Play Time 02:41:55 Cumulative 26.8 hours Start 2026.03.22 @ 08:39:48 End 2026.03.22 @ 15:28:59 Sessions 3 Manual Loads 0 Difficulty Adventurer Special Mode None Game No. 39 Rogue 33 Adventurer 6 Explorer 0 Win Type - Total 0 Types 0/0/0/0/0/0/0/0/0/0 Lore% 18 Gallery% 28 Achievement% 20 Wizard Run 0 Options --------- Layout 1 ASCII 0 Keyboard 0 Movement Numpad Keybinds 0 Fullscreen 2 Font 32/SmallcapsGlow Map View 50x35 Zoom Use 0% Tactical HUD 1 Map Filters NONE Filters NONE Steam 1 RUN: 1fcf8f41-03a1-43d5-9bb1-f097e8a2ab60